fUSD/lending_fUSD_20240625
["ID","MTS","AMOUNT","RATE_DAILY","PERIOD"]
[330390000,1719341451641,-500.0,0.00019452,2]
[330390002,1719341451650,-500.0,0.00019452,2]
[330390004,1719341451660,-500.0,0.00019452,2]
[330390005,1719341451669,-119.86386136,0.00019452,2]
[330390008,1719341451684,-380.13613864,0.00019452,2]
[330390010,1719341451693,-500.0,0.00019452,2]
[330390012,1719341451702,-500.0,0.00019452,2]
[330390014,1719341451711,-500.0,0.00019452,2]
[330390016,1719341451720,-58.00801579,0.00019452,2]
[330390018,1719341451732,-441.99198421,0.00019452,2]
[330390020,1719341451742,-206.1572754,0.00019452,2]
[330390027,1719341451803,-293.8427246,0.00019452,2]
[330390030,1719341451816,-500.0,0.00019452,2]
[330390032,1719341451826,-930.53,0.00019452,2]
[330390034,1719341451835,-500.0,0.00019452,2]
[330390036,1719341451844,-562.02,0.00019452,2]
[330390038,1719341451854,-500.0,0.00019452,2]
[330390040,1719341451863,-303.79020338,0.00019452,2]
[330390042,1719341451873,-500.0,0.00019452,2]
[330390044,1719341451882,-500.0,0.00019452,2]
[330390046,1719341451891,-500.0,0.00019452,2]
[330390048,1719341451900,-500.0,0.00019452,2]
[330390050,1719341451910,-500.0,0.00019452,2]
[330390052,1719341451919,-166.57080242,0.00019452,2]
[330390054,1719341451931,-333.42919758,0.00019452,2]
[330390056,1719341451941,-361.20080242,0.00019452,2]
[330390193,1719341453296,7546.9748219,0.00015358,2]
[330390223,1719341543452,152.56,0.00018849,30]
[330390225,1719341815884,171.91,0.00014384,2]
[330390227,1719341840378,817.91302669,0.00014384,2]
[330390228,1719341842707,370.50986325,0.00014384,2]
[330390229,1719341846563,7546.9748219,0.00014384,2]
[330390230,1719341851626,180.98668083,0.00014384,2]
[330390233,1719341974073,7546.9748219,0.00014384,2]
[330390234,1719341990073,7546.9748219,0.00014384,2]
[330390235,1719342097914,152.56,0.00018849,30]
[330390236,1719342104088,7546.9748219,0.00014384,2]
[330390237,1719342119109,7546.9748219,0.00014384,2]
[330390242,1719342221086,7546.9748219,0.00014384,2]
[330390247,1719342320203,7546.9748219,0.00014384,2]
[330390249,1719342439131,7546.9748219,0.00014384,2]
[330390250,1719342442505,421.36858621,0.00014384,2]
[330390251,1719342464135,181.02431915,0.00014384,2]
[330390253,1719342494318,18449.58628171,0.00014384,2]
[330390254,1719342513750,172.32,0.00025928,120]
[330390255,1719342544098,7546.9748219,0.00014384,2]
[330390256,1719342607096,-4365.2806,0.00015548,2]
[330390257,1719342607119,-16574.49704538,0.00015548,2]
[330390258,1719342619173,181.02431915,0.00014384,2]
[330390259,1719342621041,-650.69302056,0.00015647,2]
[330390260,1719342621063,-523.44090366,0.00015647,2]
[330390261,1719342621089,-588.98,0.00015648,2]
[330390262,1719342621111,-150.0,0.00015798,2]
[330390263,1719342621134,-442.40862375,0.00016086,2]
[330390264,1719342629643,-4460.46453,0.00016595,2]
[330390265,1719342629670,-161.05154285,0.00016679,2]
[330390266,1719342629694,-291.98506278,0.00016779,2]
[330390267,1719342629721,-625.2,0.00017096,2]
[330390280,1719342631928,-200.0,0.00017278,2]
[330390281,1719342631939,-172.32,0.00017285,2]
[330390282,1719342631948,-796.48,0.00017285,2]
[330390283,1719342631958,-299.99,0.000173,4]
[330390284,1719342631968,-200.0,0.00017302,2]
[330390285,1719342631977,-250.0,0.00017321,2]
[330390286,1719342631987,-169.23,0.00017344,2]
[330390287,1719342631996,-210.0,0.00017378,2]
[330390288,1719342632006,-155.0,0.00017435,2]
[330390289,1719342632016,-224.99,0.00017446,2]
[330390290,1719342632025,-2703.18,0.00017471,2]
[330390291,1719342632035,-460.06,0.00017479,2]
[330390292,1719342632045,-150.0,0.00017507,2]
[330390293,1719342632054,-499.99,0.00017534,2]
[330390294,1719342632064,-448.52641518,0.00017551,2]
[330390295,1719342632076,-5962.64295461,0.00017551,2]
[330390296,1719342632087,-6855.0,0.00017551,2]
[330390297,1719342632101,-1813.68063021,0.00017551,2]
[330390298,1719342632110,-338.24,0.00017574,2]
[330390299,1719342632119,-250.0,0.00017609,2]
[330390300,1719342632129,-150.0,0.00017628,2]
[330390301,1719342632138,-363.95360909,0.00017656,2]
[330390302,1719342632148,-500.0,0.00017657,2]
[330390303,1719342632159,-78.89528573,0.00017733,2]
[330390304,1719342632872,-359.21622117,0.00017733,2]
[330390305,1719342632882,-2284.16,0.00017734,2]
[330390306,1719342632891,-150.0,0.0001775,2]
[330390307,1719342632902,-155.0,0.00017788,2]
[330390308,1719342632911,-150.29,0.00017789,2]
[330390309,1719342632920,-150.0,0.00017872,2]
[330390310,1719342632930,-245.87,0.00017873,2]
[330390311,1719342632940,-588.98,0.00017912,2]
[330390312,1719342632949,-1000.0,0.00017921,2]
[330390313,1719342632958,-172.85,0.00017928,2]
[330390314,1719342632967,-150.0,0.00017928,2]
[330390315,1719342632977,-150.0,0.00017993,2]
[330390316,1719342632988,-150.0,0.00018115,2]
[330390317,1719342632998,-150.0,0.00018236,2]
[330390318,1719342633007,-150.0,0.00018358,2]
[330390319,1719342633017,-150.0,0.00018479,2]
[330390320,1719342633026,-150.0,0.00018601,2]
[330390321,1719342633036,-150.29,0.00018716,2]
[330390322,1719342633045,-150.0,0.00018723,2]
[330390323,1719342633055,-150.0,0.00018844,2]
[330390324,1719342633064,-150.0,0.00018966,2]
[330390325,1719342633074,-1840.95870521,0.00018978,2]
[330390326,1719342633083,-3002.3216,0.00018978,2]
[330390327,1719342633093,-605.67128224,0.00018978,2]
[330390328,1719342633107,-1878.11084122,0.00018978,2]
[330390329,1719342633119,-1263.63647654,0.00018978,2]
[330390330,1719342633128,-491.29,0.00019068,3]
[330390331,1719342633137,-220.12,0.00019068,3]
[330390332,1719342633147,-2491.01847886,0.00019076,2]
[330390333,1719342633157,-3105.79028967,0.00019077,2]
[330390334,1719342633166,-162.2297699,0.00019078,2]
[330390335,1719342633176,-151.71791566,0.00019078,2]
[330390336,1719342633185,-1296.40107845,0.00019078,2]
[330390337,1719342633196,-462.73491274,0.00019078,2]
[330390339,1719342633205,-213.93993789,0.00019078,2]
[330390341,1719342633214,-7341.51256525,0.00019078,2]
[330390343,1719342633226,-2658.48743475,0.00019078,2]
[330390344,1719342633235,-1000.0,0.00019078,2]
[330390345,1719342633246,-1000.0,0.00019078,2]
[330390346,1719342633256,-60606.3143,0.00019078,2]
[330390347,1719342633265,-4578.1594,0.00019078,2]
[330390348,1719342633275,-6500.4668,0.00019078,2]
[330390349,1719342633284,-150.0,0.00019087,2]
[330390350,1719342633294,-284.0,0.00019116,2]
[330390351,1719342633303,-462.73491274,0.00019147,2]
[330390352,1719342633313,-283.57813973,0.00019147,2]
[330390353,1719342633322,-150.0,0.00019148,2]
[330390354,1719342633331,-155.97353947,0.00019159,2]
[330390355,1719342633341,-1500.0,0.0001916,2]
[330390356,1719342633352,-213.93993788,0.0001916,2]
[330390357,1719342633362,-264.3264858,0.00019163,2]
[330390358,1719342633371,-364.844001,0.00019163,2]
[330390359,1719342633380,-150.0,0.00019164,2]
[330390360,1719342633390,-690.28734422,0.00019166,2]
[330390361,1719342633399,-1069.94736295,0.00019167,2]
[330390362,1719342633408,-208.29876607,0.00019167,2]
[330390363,1719342633417,-155.0,0.00019168,2]
[330390364,1719342633426,-155.0,0.00019168,2]
[330390365,1719342633435,-155.0,0.00019168,2]
[330390366,1719342633445,-155.0,0.00019168,2]
[330390367,1719342633454,-155.0,0.00019168,2]
[330390368,1719342633463,-210.20765485,0.00019168,2]
[330390369,1719342633473,-155.0,0.00019169,2]
[330390370,1719342633483,-150.0,0.0001917,2]
[330390371,1719342633491,-150.0,0.00019173,2]
[330390372,1719342633501,-378.6472136,0.00019174,2]
[330390373,1719342633510,-150.0,0.00019175,2]
[330390374,1719342633520,-150.0,0.00019177,2]
[330390375,1719342633529,-519.0,0.00019178,2]
[330390376,1719342633538,-500.0,0.00019178,2]
[330390377,1719342633548,-500.0,0.00019178,2]
[330390378,1719342633558,-400.69307938,0.00019178,2]
[330390379,1719342633568,-412.11333348,0.00019178,2]
[330390380,1719342633578,-200.0,0.00019178,2]
[330390381,1719342633587,-500.0,0.00019178,2]
[330390382,1719342633596,-500.0,0.00019178,2]
[330390383,1719342633607,-500.0,0.00019178,2]
[330390384,1719342633617,-500.0,0.00019178,2]
[330390385,1719342633626,-669.65,0.00019178,2]
[330390386,1719342633636,-631.51,0.00019178,2]
[330390387,1719342633645,-929.35,0.00019178,2]
[330390388,1719342633654,-600.22,0.00019178,2]
[330390389,1719342633664,-537.93,0.00019178,2]
[330390390,1719342633673,-500.0,0.00019178,2]
[330390391,1719342633683,-500.0,0.00019178,2]
[330390392,1719342633692,-500.0,0.00019178,2]
[330390393,1719342633701,-500.0,0.00019178,2]
[330390394,1719342633711,-842.12,0.00019178,2]
[330390395,1719342633725,-932.84,0.00019178,2]
[330390396,1719342633734,-500.0,0.00019178,2]
[330390397,1719342633744,-500.0,0.00019178,2]
[330390398,1719342633754,-622.35,0.00019178,2]
[330390399,1719342633763,-1078.66,0.00019178,2]
[330390400,1719342633773,-500.0,0.00019178,2]
[330390401,1719342633782,-618.04,0.00019178,2]
[330390402,1719342633793,-500.0,0.00019178,2]
[330390403,1719342633802,-500.0,0.00019178,2]
[330390404,1719342633811,-573.69135559,0.00019178,2]
[330390405,1719342633820,-553.6,0.00019178,2]
[330390406,1719342633829,-584.65,0.00019178,2]
[330390407,1719342633838,-500.0,0.00019178,2]
[330390408,1719342633848,-500.0,0.00019178,2]
[330390409,1719342633858,-500.0,0.00019178,2]
[330390410,1719342633867,-500.0,0.00019178,2]
[330390411,1719342633876,-663.0,0.00019178,2]
[330390412,1719342633886,-500.0,0.00019178,2]
[330390413,1719342633895,-500.0,0.00019178,2]
[330390414,1719342633903,-500.0,0.00019178,2]
[330390415,1719342633912,-500.0,0.00019178,2]
[330390416,1719342633921,-500.0,0.00019178,2]
[330390417,1719342633930,-500.0,0.00019178,2]
[330390418,1719342633939,-500.0,0.00019178,2]
[330390419,1719342633948,-500.0,0.00019178,2]
[330390420,1719342633958,-500.0,0.00019178,2]
[330390421,1719342633966,-1614.2,0.00019178,2]
[330390422,1719342633975,-500.0,0.00019178,2]
[330390423,1719342633984,-554.43683095,0.00019178,2]
[330390424,1719342633994,-500.0,0.00019178,2]
[330390425,1719342634003,-500.0,0.00019178,2]
[330390426,1719342634013,-500.0,0.00019178,2]
[330390427,1719342634022,-500.0,0.00019178,2]
[330390428,1719342634032,-500.0,0.00019178,2]
[330390429,1719342634041,-500.0,0.00019178,2]
[330390430,1719342634050,-1514.38,0.00019178,2]
[330390431,1719342634060,-500.0,0.00019178,2]
[330390432,1719342634069,-500.0,0.00019178,2]
[330390433,1719342634078,-1092.3,0.00019178,2]
[330390434,1719342634088,-500.0,0.00019178,2]
[330390435,1719342634098,-500.0,0.00019178,2]
[330390436,1719342634109,-638.28,0.00019178,2]
[330390437,1719342634118,-500.0,0.00019178,2]
[330390438,1719342634131,-500.0,0.00019178,2]
[330390439,1719342634141,-500.0,0.00019178,2]
[330390440,1719342634151,-500.0,0.00019178,2]
[330390441,1719342634163,-500.0,0.00019178,2]
[330390442,1719342634173,-500.0,0.00019178,2]
[330390443,1719342634182,-500.0,0.00019178,2]
[330390444,1719342634191,-500.0,0.00019178,2]
[330390445,1719342634200,-589.32,0.00019178,2]
[330390446,1719342634209,-500.0,0.00019178,2]
[330390447,1719342634220,-500.0,0.00019178,2]
[330390448,1719342634230,-500.0,0.00019178,2]
[330390449,1719342634239,-500.0,0.00019178,2]
[330390450,1719342634249,-500.0,0.00019178,2]
[330390451,1719342634259,-803.24,0.00019178,2]
[330390452,1719342634268,-671.92,0.00019178,2]
[330390453,1719342634277,-500.0,0.00019178,2]
[330390454,1719342634287,-500.0,0.00019178,2]
[330390455,1719342634296,-500.0,0.00019178,2]
[330390456,1719342634306,-500.0,0.00019178,2]
[330390457,1719342634316,-500.0,0.00019178,2]
[330390458,1719342634325,-500.0,0.00019178,2]
[330390459,1719342634334,-500.0,0.00019178,2]
[330390460,1719342634343,-753.94,0.00019178,2]
[330390461,1719342634357,-500.0,0.00019178,2]
[330390462,1719342634366,-500.0,0.00019178,2]
[330390463,1719342634375,-500.0,0.00019178,2]
[330390464,1719342634384,-500.0,0.00019178,2]
[330390465,1719342634392,-569.47,0.00019178,2]
[330390466,1719342634401,-753.84,0.00019178,2]
[330390467,1719342634411,-500.0,0.00019178,2]
[330390468,1719342634420,-500.0,0.00019178,2]
[330390469,1719342634429,-609.81,0.00019178,2]
[330390470,1719342634439,-500.0,0.00019178,2]
[330390471,1719342634448,-500.0,0.00019178,2]
[330390472,1719342634458,-500.0,0.00019178,2]
[330390473,1719342634467,-500.0,0.00019178,2]
[330390474,1719342634476,-500.0,0.00019178,2]
[330390475,1719342634486,-500.0,0.00019178,2]
[330390476,1719342634496,-801.54,0.00019178,2]
[330390477,1719342634506,-570.44,0.00019178,2]
[330390478,1719342634515,-500.0,0.00019178,2]
[330390479,1719342634527,-500.0,0.00019178,2]
[330390480,1719342634550,-547.58,0.00019178,2]
[330390481,1719342634562,-15129.77,0.00019178,2]
[330390482,1719342634583,-500.0,0.00019178,2]
[330390483,1719342634593,-896.07,0.00019178,2]
[330390484,1719342634607,-900.68,0.00019178,2]
[330390485,1719342634616,-784.27,0.00019178,2]
[330390486,1719342634625,-500.0,0.00019178,2]
[330390487,1719342634634,-500.0,0.00019178,2]
[330390488,1719342634644,-500.0,0.00019178,2]
[330390489,1719342634653,-2002.3,0.00019178,2]
[330390490,1719342634663,-500.0,0.00019178,2]
[330390491,1719342634672,-500.0,0.00019178,2]
[330390492,1719342634682,-500.0,0.00019178,2]
[330390493,1719342634691,-500.0,0.00019178,2]
[330390494,1719342634700,-500.0,0.00019178,2]
[330390495,1719342634713,-500.0,0.00019178,2]
[330390496,1719342634724,-500.0,0.00019178,2]
[330390497,1719342634733,-750.62,0.00019178,2]
[330390498,1719342634742,-500.0,0.00019178,2]
[330390499,1719342634752,-1048.32,0.00019178,2]
[330390500,1719342634763,-500.0,0.00019178,2]
[330390501,1719342634773,-1073.65,0.00019178,2]
[330390502,1719342634782,-500.0,0.00019178,2]
[330390503,1719342634793,-1284.24,0.00019178,2]
[330390504,1719342634802,-500.0,0.00019178,2]
[330390505,1719342634811,-704.08,0.00019178,2]
[330390506,1719342634821,-601.73,0.00019178,2]
[330390507,1719342634830,-768.96,0.00019178,2]
[330390508,1719342634839,-973.55,0.00019178,2]
[330390509,1719342634850,-502.85,0.00019178,2]
[330390510,1719342634859,-730.93,0.00019178,2]
[330390511,1719342634869,-500.0,0.00019178,2]
[330390512,1719342634878,-500.0,0.00019178,2]
[330390513,1719342634887,-500.0,0.00019178,2]
[330390514,1719342634897,-500.0,0.00019178,2]
[330390515,1719342634906,-500.0,0.00019178,2]
[330390516,1719342634915,-1064.55,0.00019178,2]
[330390517,1719342634925,-500.0,0.00019178,2]
[330390518,1719342634934,-934.66,0.00019178,2]
[330390519,1719342634943,-500.0,0.00019178,2]
[330390520,1719342634953,-500.0,0.00019178,2]
[330390521,1719342634962,-981.5,0.00019178,2]
[330390522,1719342634971,-500.0,0.00019178,2]
[330390523,1719342634981,-500.0,0.00019178,2]
[330390524,1719342634990,-500.0,0.00019178,2]
[330390525,1719342634999,-954.11,0.00019178,2]
[330390526,1719342635008,-1098.19,0.00019178,2]
[330390527,1719342635018,-504.01664676,0.00019178,2]
[330390528,1719342635027,-500.0,0.00019178,2]
[330390529,1719342635036,-500.0,0.00019178,2]
[330390530,1719342635046,-500.0,0.00019178,2]
[330390531,1719342635055,-548.77,0.00019178,2]
[330390532,1719342635064,-500.0,0.00019178,2]
[330390533,1719342635073,-500.0,0.00019178,2]
[330390534,1719342635083,-500.0,0.00019178,2]
[330390535,1719342635091,-500.0,0.00019178,2]
[330390536,1719342635101,-500.0,0.00019178,2]
[330390537,1719342635110,-2626.94,0.00019178,2]
[330390538,1719342635119,-500.0,0.00019178,2]
[330390539,1719342635128,-500.0,0.00019178,2]
[330390540,1719342635137,-697.14,0.00019178,2]
[330390541,1719342635146,-1652.88,0.00019178,2]
[330390542,1719342635157,-500.0,0.00019178,2]
[330390543,1719342635166,-526.3,0.00019178,2]
[330390544,1719342635175,-917.09,0.00019178,2]
[330390545,1719342635184,-527.09,0.00019178,2]
[330390546,1719342635193,-500.0,0.00019178,2]
[330390547,1719342635202,-500.0,0.00019178,2]
[330390548,1719342635210,-500.0,0.00019178,2]
[330390549,1719342635220,-1375.4,0.00019178,2]
[330390550,1719342635229,-500.0,0.00019178,2]
[330390551,1719342635238,-10195.71,0.00019178,2]
[330390552,1719342635247,-500.0,0.00019178,2]
[330390553,1719342635256,-666.9,0.00019178,2]
[330390554,1719342635265,-1265.7,0.00019178,2]
[330390555,1719342635274,-541.46,0.00019178,2]
[330390556,1719342635284,-500.0,0.00019178,2]
[330390557,1719342635293,-500.0,0.00019178,2]
[330390558,1719342635303,-500.0,0.00019178,2]
[330390559,1719342635312,-500.0,0.00019178,2]
[330390560,1719342635322,-984.52,0.00019178,2]
[330390561,1719342635331,-500.0,0.00019178,2]
[330390562,1719342635341,-500.0,0.00019178,2]
[330390563,1719342635352,-500.0,0.00019178,2]
[330390564,1719342635361,-809.1,0.00019178,2]
[330390565,1719342635371,-875.9,0.00019178,2]
[330390566,1719342635380,-500.0,0.00019178,2]
[330390567,1719342635390,-500.0,0.00019178,2]
[330390568,1719342635401,-500.0,0.00019178,2]
[330390569,1719342635410,-500.0,0.00019178,2]
[330390570,1719342635419,-500.0,0.00019178,2]
[330390571,1719342635429,-500.0,0.00019178,2]
[330390572,1719342635438,-500.0,0.00019178,2]
[330390573,1719342635448,-950.42,0.00019178,2]
[330390574,1719342635459,-500.0,0.00019178,2]
[330390575,1719342635468,-721.32,0.00019178,2]
[330390576,1719342635477,-537.5,0.00019178,2]
[330390577,1719342635486,-1425.92,0.00019178,2]
[330390578,1719342635495,-1132.19,0.00019178,2]
[330390579,1719342635504,-500.0,0.00019178,2]
[330390580,1719342635514,-956.98,0.00019178,2]
[330390581,1719342635523,-1161.18,0.00019178,2]
[330390582,1719342635532,-577.17,0.00019178,2]
[330390583,1719342635542,-500.0,0.00019178,2]
[330390584,1719342635552,-500.0,0.00019178,2]
[330390585,1719342635562,-500.0,0.00019178,2]
[330390586,1719342635571,-1076.66,0.00019178,2]
[330390587,1719342635582,-500.0,0.00019178,2]
[330390588,1719342635591,-1376.4,0.00019178,2]
[330390589,1719342635601,-923.88,0.00019178,2]
[330390590,1719342635610,-522.91,0.00019178,2]
[330390591,1719342635619,-500.0,0.00019178,2]
[330390592,1719342635628,-500.0,0.00019178,2]
[330390593,1719342635637,-3432.7,0.00019178,2]
[330390594,1719342635647,-500.0,0.00019178,2]
[330390595,1719342635656,-604.55,0.00019178,2]
[330390596,1719342635664,-210.03707581,0.00019178,2]
[330390597,1719342635674,-500.0,0.00019178,2]
[330390598,1719342635682,-250.0,0.00019178,2]
[330390599,1719342635692,-776.83,0.00019178,2]
[330390600,1719342635700,-522.08,0.00019178,2]
[330390601,1719342635710,-500.0,0.00019178,2]
[330390602,1719342635724,-1279.19,0.00019178,2]
[330390603,1719342635734,-500.0,0.00019178,2]
[330390604,1719342635743,-573.23,0.00019178,2]
[330390605,1719342635753,-500.0,0.00019178,2]
[330390606,1719342635762,-500.0,0.00019178,2]
[330390607,1719342635771,-500.0,0.00019178,2]
[330390608,1719342635780,-500.0,0.00019178,2]
[330390609,1719342635793,-259.47710917,0.00019178,2]
[330390610,1719342635803,-620.89,0.00019178,2]
[330390611,1719342635812,-1055.42,0.00019178,2]
[330390612,1719342635823,-697.75,0.00019178,2]
[330390613,1719342635832,-500.0,0.00019178,2]
[330390614,1719342635842,-500.0,0.00019178,2]
[330390615,1719342635853,-1912.78,0.00019178,2]
[330390616,1719342635862,-500.0,0.00019178,2]
[330390617,1719342635871,-1897.23,0.00019178,2]
[330390618,1719342635880,-500.0,0.00019178,2]
[330390619,1719342635889,-500.0,0.00019178,2]
[330390620,1719342635898,-615.85,0.00019178,2]
[330390621,1719342635907,-500.0,0.00019178,2]
[330390622,1719342635916,-1066.46,0.00019178,2]
[330390623,1719342635926,-2919.72,0.00019178,2]
[330390624,1719342635935,-500.0,0.00019178,2]
[330390625,1719342635944,-649.95,0.00019178,2]
[330390626,1719342635954,-500.0,0.00019178,2]
[330390627,1719342635964,-500.0,0.00019178,2]
[330390628,1719342635974,-500.0,0.00019178,2]
[330390629,1719342635983,-1108.88,0.00019178,2]
[330390630,1719342635992,-500.0,0.00019178,2]
[330390631,1719342636001,-2114.58,0.00019178,2]
[330390632,1719342636011,-500.0,0.00019178,2]
[330390633,1719342636194,-500.0,0.00019178,2]
[330390634,1719342636206,-842.07,0.00019178,2]
[330390635,1719342636216,-500.0,0.00019178,2]
[330390636,1719342636226,-500.0,0.00019178,2]
[330390637,1719342636236,-807.04,0.00019178,2]
[330390638,1719342636245,-500.0,0.00019178,2]
[330390639,1719342636254,-500.0,0.00019178,2]
[330390640,1719342636264,-500.0,0.00019178,2]
[330390641,1719342636274,-500.0,0.00019178,2]
[330390642,1719342636283,-1160.82,0.00019178,2]
[330390643,1719342636293,-847.89,0.00019178,2]
[330390644,1719342636302,-500.0,0.00019178,2]
[330390645,1719342636312,-1497.29,0.00019178,2]
[330390646,1719342636321,-500.0,0.00019178,2]
[330390647,1719342636331,-1785.86,0.00019178,2]
[330390648,1719342636340,-500.0,0.00019178,2]
[330390649,1719342636349,-500.0,0.00019178,2]
[330390650,1719342636359,-1070.95,0.00019178,2]
[330390651,1719342636369,-685.27,0.00019178,2]
[330390652,1719342636378,-500.0,0.00019178,2]
[330390653,1719342636388,-682.12,0.00019178,2]
[330390654,1719342636397,-1007.01,0.00019178,2]
[330390655,1719342636407,-500.0,0.00019178,2]
[330390656,1719342636416,-735.04,0.00019178,2]
[330390657,1719342636425,-1821.99,0.00019178,2]
[330390658,1719342636435,-500.0,0.00019178,2]
[330390659,1719342636444,-500.0,0.00019178,2]
[330390660,1719342636454,-522.64,0.00019178,2]
[330390661,1719342636464,-500.0,0.00019178,2]
[330390662,1719342636473,-700.74,0.00019178,2]
[330390663,1719342636482,-783.27,0.00019178,2]
[330390664,1719342636492,-1937.51,0.00019178,2]
[330390665,1719342636501,-500.0,0.00019178,2]
[330390666,1719342636510,-500.0,0.00019178,2]
[330390667,1719342636520,-500.0,0.00019178,2]
[330390668,1719342636529,-500.0,0.00019178,2]
[330390669,1719342636538,-2859.06,0.00019178,2]
[330390670,1719342636548,-7919.29,0.00019178,2]
[330390671,1719342636557,-500.0,0.00019178,2]
[330390672,1719342636567,-1748.97,0.00019178,2]
[330390673,1719342636576,-807.37,0.00019178,2]
[330390674,1719342636586,-500.0,0.00019178,2]
[330390675,1719342636595,-500.0,0.00019178,2]
[330390676,1719342636606,-646.94,0.00019178,2]
[330390677,1719342636615,-500.0,0.00019178,2]
[330390678,1719342636624,-500.0,0.00019178,2]
[330390679,1719342636634,-500.0,0.00019178,2]
[330390680,1719342636643,-500.0,0.00019178,2]
[330390681,1719342636652,-1732.74,0.00019178,2]
[330390682,1719342636661,-539.02,0.00019178,2]
[330390683,1719342636670,-585.16,0.00019178,2]
[330390684,1719342636680,-3079.72,0.00019178,2]
[330390685,1719342636689,-500.0,0.00019178,2]
[330390686,1719342636699,-500.0,0.00019178,2]
[330390687,1719342636708,-500.0,0.00019178,2]
[330390688,1719342636722,-500.0,0.00019178,2]
[330390689,1719342636732,-500.0,0.00019178,2]
[330390690,1719342636741,-911.22,0.00019178,2]
[330390691,1719342636753,-500.0,0.00019178,2]
[330390692,1719342636762,-3003.63,0.00019178,2]
[330390693,1719342636771,-823.04,0.00019178,2]
[330390694,1719342636781,-851.49,0.00019178,2]
[330390695,1719342636791,-500.0,0.00019178,2]
[330390696,1719342636800,-1006.13,0.00019178,2]
[330390697,1719342636810,-614.81,0.00019178,2]
[330390698,1719342636819,-500.0,0.00019178,2]
[330390699,1719342636829,-500.0,0.00019178,2]
[330390700,1719342636838,-547.28770684,0.00019178,2]
[330390701,1719342636849,-500.0,0.00019178,2]
[330390702,1719342636858,-1074.75,0.00019178,2]
[330390703,1719342636867,-1900.82,0.00019178,2]
[330390704,1719342636877,-7765.33,0.00019178,2]
[330390705,1719342636886,-500.0,0.00019178,2]
[330390706,1719342636896,-1518.37,0.00019178,2]
[330390707,1719342636905,-500.0,0.00019178,2]
[330390708,1719342636915,-1089.17,0.00019178,2]
[330390709,1719342636924,-500.0,0.00019178,2]
[330390710,1719342636933,-2095.91,0.00019178,2]
[330390711,1719342636943,-500.0,0.00019178,2]
[330390712,1719342636952,-499.95735303,0.00019178,2]
[330390713,1719342636961,-666.68,0.00019178,2]
[330390714,1719342636970,-2579.79,0.00019178,2]
[330390715,1719342636980,-500.0,0.00019178,2]
[330390716,1719342636989,-1741.9,0.00019178,2]
[330390717,1719342637005,-296.03888521,0.00019178,2]
[330390718,1719342637015,-808.89,0.00019178,2]
[330390719,1719342637025,-500.0,0.00019178,2]
[330390720,1719342637035,-500.0,0.00019178,2]
[330390721,1719342637045,-845.16,0.00019178,2]
[330390722,1719342637055,-500.0,0.00019178,2]
[330390723,1719342637066,-500.0,0.00019178,2]
[330390724,1719342637076,-500.0,0.00019178,2]